[Event "EYCC O18-ch 2024"]
[Site "Prague"]
[Date "2024.08.23"]
[Round "2.13"]
[White "Dogias, Christos"]
[Black "Babula, Vlastimil"]
[Result "1/2-1/2"]
[ECO "B51"]
[WhiteElo "2047"]
[BlackElo "2326"]
[Annotator "ChessBase"]
[PlyCount "196"]
[EventDate "2024.08.19"]
[EventType "swiss"]
[EventCountry "CZE"]
[SourceTitle "playchess.com"]
[Source "ChessBase"]
[SourceQuality "1"]
[TimeControl "5400+30"]

1. e4 {[%emt 0:00:04]} c5 {[%emt 0:00:19]} 2. Nf3 {[%emt 0:00:07]} d6 {[%emt 0:00:17]} 3. Bb5+ {[%emt 0:00:06]} Nd7 {[%emt 0:00:19]} 4. d4 {[%emt 0:00:07]} cxd4 {[%emt 0:00:36]} 5. Nxd4 {[%emt 0:00:13]} Ngf6 {[%emt 0:00:54]} 6. Bd3 {[%emt 0:00:10]} Nc5 {[%emt 0:05:09]} 7. Nc3 {[%emt 0:00:43]} e6 {[%emt 0:02:50]} 8. O-O {[%emt 0:06:28]} a6 {[%emt 0:02:18]} 9. Be3 {[%emt 0:15:20]} Qc7 {[%emt 0:07:51]} 10. f3 {[%emt 0:06:52]} Be7 {[%emt 0:00:42]} 11. Qd2 {[%emt 0:13:38]} O-O {[%emt 0:00:27]} 12. a4 {[%emt 0:03:17]} b6 {[%emt 0:02:02]} 13. Rfc1 {[%emt 0:13:14]} Bb7 {[%emt 0:01:44]} 14. Nce2 {[%emt 0:06:38]} d5 {[%emt 0:05:22]} 15. e5 {[%emt 0:02:51]} Nfd7 {[%emt 0:11:30]} 16. f4 {[%emt 0:04:48]} f6 {[%emt 0:01:59]} 17. exf6 {[%emt 0:10:18]} Nxf6 {[%emt 0:02:29]} 18. Rf1 {[%emt 0:02:31]} Ng4 {[%emt 0:03:25]} 19. h3 {[%emt 0:01:57]} Nxe3 {[%emt 0:00:44]} 20. Qxe3 {[%emt 0:00:08]} Qd6 {[%emt 0:03:32]} 21. Qe5 {[%emt 0:04:10]} Rad8 {[%emt 0:06:24]} 22. b4 {[%emt 0:01:03]} Nxd3 {[%emt 0:02:41]} 23. Qxd6 {[%emt 0:01:26]} Bxd6 {[%emt 0:02:34]} 24. cxd3 {[%emt 0:00:05]} Bc8 {[%emt 0:00:23]} 25. Nc6 {[%emt 0:01:33]} Rde8 {[%emt 0:01:06]} 26. b5 {[%emt 0:01:44]} Bd7 {[%emt 0:00:49]} 27. Ncd4 {[%emt 0:02:48]} Bc5 {[%emt 0:03:47]} 28. Kh2 {[%emt 0:00:27]} Ra8 {[%emt 0:00:56]} 29. Nc6 {[%emt 0:00:40]} Bxc6 {[%emt 0:02:13]} 30. bxc6 {[%emt 0:00:04]} Rac8 {[%emt 0:01:03]} 31. Rac1 {[%emt 0:00:26]} Rc7 {[%emt 0:00:14]} 32. a5 {[%emt 0:00:34]} Be3 {[%emt 0:00:34]} 33. axb6 {[%emt 0:00:45]} Bxb6 {[%emt 0:00:03]} 34. Rc3 {[%emt 0:00:38]} Rfc8 {[%emt 0:01:41]} 35. Rb1 {[%emt 0:00:12]} Bf2 {[%emt 0:03:10]} 36. Rbc1 {[%emt 0:00:28]} Kf7 {[%emt 0:01:41]} 37. g3 {[%emt 0:00:05]} Ba7 {[%emt 0:00:07]} 38. Kg2 {[%emt 0:00:45]} Ke7 {[%emt 0:00:05]} 39. Kf3 {[%emt 0:01:13]} Rb8 {[%emt 0:01:29]} 40. Ra1 {[%emt 0:00:48]} Rb6 {[%emt 0:00:45]} 41. Nd4 {[%emt 0:00:04]} Rb2 {[%emt 0:00:54]} 42. Nc2 {[%emt 0:00:28]} Rb6 {[%emt 0:02:16]} 43. Nd4 {[%emt 0:00:06]} Rb2 {[%emt 0:00:04]} 44. Nc2 {[%emt 0:00:05]} Kd6 {[%emt 0:00:02]} 45. Rxa6 {[%emt 0:00:23]} Bb6 {[%emt 0:00:03]} 46. Ra8 {[%emt 0:01:19]} Rxc6 {[%emt 0:00:02]} 47. Rxc6+ {[%emt 0:00:19]} Kxc6 {[%emt 0:00:01]} 48. Ne3 {[%emt 0:00:57]} Rd2 {[%emt 0:00:48]} 49. Ra3 {[%emt 0:00:10]} h5 {[%emt 0:00:50]} 50. Rb3 {[%emt 0:01:33]} Bc5 {[%emt 0:01:32]} 51. h4 {[%emt 0:00:20]} Ra2 {[%emt 0:08:11]} 52. Nd1 {[%emt 0:00:06]} Bd4 {[%emt 0:03:47]} 53. Ne3 {[%emt 0:00:20]} Kd6 {[%emt 0:02:15]} 54. Nd1 {[%emt 0:00:10]} Kc5 {[%emt 0:01:23]} 55. Ne3 {[%emt 0:00:05]} Rd2 {[%emt 0:00:38]} 56. g4 {[%emt 0:00:06]} Rh2 {[%emt 0:00:01]} 57. Kg3 {[%emt 0:01:00]} Ra2 {[%emt 0:01:34]} 58. Nf1 {[%emt 0:00:52]} hxg4 {[%emt 0:01:12]} 59. Nh2 {[%emt 0:01:22]} Bf2+ {[%emt 0:00:27]} 60. Kxg4 Bxh4 {[%emt 0:00:04]} 61. Nf3 {[%emt 0:00:12]} Bf6 {[%emt 0:00:12]} 62. Rb7 {[%emt 0:01:03]} Rg2+ {[%emt 0:01:18]} 63. Kh3 {[%emt 0:00:08]} Re2 {[%emt 0:00:02]} 64. Kg4 Re3 {[%emt 0:02:35]} 65. Rb3 {[%emt 0:00:29]} Kd6 {[%emt 0:00:06]} 66. Rb6+ {[%emt 0:00:46]} Ke7 {[%emt 0:00:33]} 67. Rb7+ {[%emt 0:00:03]} Kf8 {[%emt 0:00:16]} 68. d4 {[%emt 0:00:11]} Re4 {[%emt 0:00:31]} 69. Rb8+ {[%emt 0:00:32]} Ke7 {[%emt 0:01:09]} 70. Ne5 {[%emt 0:00:40]} Bxe5 {[%emt 0:01:33]} 71. dxe5 {[%emt 0:00:07]} Re1 {[%emt 0:00:03]} 72. Rb7+ {[%emt 0:00:17]} Kf8 {[%emt 0:00:25]} 73. Kf3 {[%emt 0:01:19]} g5 {[%emt 0:00:49]} 74. fxg5 {[%emt 0:00:52]} Rxe5 {[%emt 0:00:01]} 75. Kg4 {[%emt 0:00:31]} d4 {[%emt 0:01:59]} 76. Kf4 {[%emt 0:01:16]} Rd5 {[%emt 0:00:29]} 77. Ke4 {[%emt 0:00:16]} d3 {[%emt 0:00:31]} 78. Rb1 {[%emt 0:00:04]} d2 {[%emt 0:01:52]} 79. Rd1 {[%emt 0:00:04]} Kf7 {[%emt 0:00:42]} 80. Ke3 {[%emt 0:00:03]} Re5+ {[%emt 0:00:28]} 81. Kf2 {[%emt 0:00:33]} Kg6 {[%emt 0:00:47]} 82. Rxd2 {[%emt 0:00:05]} Kxg5 {[%emt 0:00:03]} 83. Rd4 {[%emt 0:00:18]} Kf5 {[%emt 0:00:06]} 84. Ra4 {[%emt 0:00:09]} Re4 {[%emt 0:00:06]} 85. Ra5+ {[%emt 0:00:14]} e5 {[%emt 0:00:01]} 86. Ra3 {[%emt 0:00:16]} Rh4 {[%emt 0:00:14]} 87. Ke1 {[%emt 0:00:20]} Rd4 {[%emt 0:00:30]} 88. Rb3 {[%emt 0:00:24]} Ke4 {[%emt 0:00:05]} 89. Ke2 {[%emt 0:00:36]} Ra4 {[%emt 0:00:01]} 90. Ke1 {[%emt 0:00:27]} Kd4 {[%emt 0:00:07]} 91. Rh3 {[%emt 0:00:39]} Ra1+ {[%emt 0:00:01]} 92. Ke2 {[%emt 0:00:14]} Ra2+ {[%emt 0:00:06]} 93. Ke1 {[%emt 0:00:15]} Rc2 {[%emt 0:00:04]} 94. Kd1 {[%emt 0:01:03]} Rc3 {[%emt 0:00:02]} 95. Rxc3 {[%emt 0:00:31]} Kxc3 {[%emt 0:00:02]} 96. Ke2 {[%emt 0:00:07]} Kd4 {[%emt 0:00:03]} 97. Kd2 {[%emt 0:00:12]} Ke4 {[%emt 0:00:04]} 98. Ke2 {[%emt 0:00:05]} Kd4 {[%emt 0:00:02]} 1/2-1/2

[Event "EYCC O18-ch 2024"]
[Site "Prague"]
[Date "2024.08.23"]
[Round "2.14"]
[White "Davtyan, Arsen"]
[Black "Ristic, Luka"]
[Result "0-1"]
[ECO "D35"]
[WhiteElo "2402"]
[BlackElo "2274"]
[Annotator "ChessBase"]
[PlyCount "118"]
[EventDate "2024.08.19"]
[EventType "swiss"]
[EventCountry "CZE"]
[SourceTitle "playchess.com"]
[Source "ChessBase"]
[SourceQuality "1"]
[TimeControl "5400+30"]

1. d4 {[%emt 0:00:03]} d5 {[%emt 0:01:01]} 2. c4 {[%emt 0:00:22]} e6 {[%emt 0:00:31]} 3. Nf3 {[%emt 0:00:54]} Nf6 {[%emt 0:00:35]} 4. Nc3 {[%emt 0:00:50]} Nbd7 {[%emt 0:00:48]} 5. cxd5 {[%emt 0:02:09]} exd5 {[%emt 0:00:30]} 6. Bf4 {[%emt 0:01:46]} Bb4 {[%emt 0:01:57]} 7. e3 {[%emt 0:01:25]} c5 {[%emt 0:05:53]} 8. Bd3 {[%emt 0:14:58]} c4 {[%emt 0:13:49]} 9. Bc2 {[%emt 0:05:32]} O-O {[%emt 0:02:21]} 10. O-O {[%emt 0:00:37]} Qa5 {[%emt 0:08:52]} 11. Ne2 {[%emt 0:17:22]} Re8 {[%emt 0:02:34]} 12. a3 {[%emt 0:04:53]} Bf8 {[%emt 0:00:13]} 13. Nc3 {[%emt 0:06:02]} b5 {[%emt 0:01:38]} 14. Ne5 {[%emt 0:02:32]} Bb7 {[%emt 0:17:15]} 15. Nxd7 {[%emt 0:16:06]} Nxd7 {[%emt 0:00:07]} 16. Nxb5 {[%emt 0:01:14]} Qxb5 {[%emt 0:01:54]} 17. Ba4 {[%emt 0:00:04]} Qb6 {[%emt 0:08:12]} 18. Bxd7 {[%emt 0:00:05]} Re7 {[%emt 0:01:35]} 19. Ba4 {[%emt 0:03:14]} Bc6 {[%emt 0:02:56]} 20. Bxc6 {[%emt 0:04:19]} Qxc6 {[%emt 0:00:02]} 21. Qc2 {[%emt 0:04:42]} Rb7 {[%emt 0:01:17]} 22. Rfe1 {[%emt 0:00:52]} Rb3 {[%emt 0:06:33]} 23. Re2 {[%emt 0:01:20]} Re8 {[%emt 0:01:04]} 24. Rae1 {[%emt 0:01:21]} Rd3 {[%emt 0:03:14]} 25. Rd2 {[%emt 0:02:27]} Rb3 {[%emt 0:00:56]} 26. h3 {[%emt 0:00:46]} Qb5 {[%emt 0:04:23]} 27. Ree2 {[%emt 0:03:27]} Bxa3 {[%emt 0:04:07]} 28. bxa3 {[%emt 0:02:24]} c3 {[%emt 0:00:05]} 29. Bd6 {[%emt 0:01:40]} cxd2 {[%emt 0:00:30]} 30. Rxd2 {[%emt 0:00:13]} Rb1+ {[%emt 0:02:02]} 31. Kh2 {[%emt 0:00:36]} h6 {[%emt 0:01:34]} 32. Qf5 {[%emt 0:00:43]} Re6 {[%emt 0:01:13]} 33. Rc2 {[%emt 0:00:44]} Rg6 {[%emt 0:00:25]} 34. g4 {[%emt 0:01:13]} Qf1 35. Kg3 Qa6 {[%emt 0:05:09]} 36. Rc8+ {[%emt 0:00:57]} Kh7 {[%emt 0:00:01]} 37. Qxb1 {[%emt 0:00:33]} Qxc8 {[%emt 0:00:08]} 38. Be5 {[%emt 0:00:27]} Kg8 {[%emt 0:01:05]} 39. Qb5 {[%emt 0:00:08]} h5 {[%emt 0:00:50]} 40. f3 {[%emt 0:00:48]} hxg4 {[%emt 0:00:26]} 41. hxg4 {[%emt 0:00:11]} Qc1 {[%emt 0:00:53]} 42. Qe8+ {[%emt 0:00:26]} Kh7 {[%emt 0:00:01]} 43. Qxf7 {[%emt 0:00:01]} Qg1+ {[%emt 0:00:28]} 44. Kf4 {[%emt 0:00:06]} Rxg4+ {[%emt 0:00:10]} 45. Kf5 {[%emt 0:00:14]} Rg5+ {[%emt 0:02:19]} 46. Ke6 {[%emt 0:00:03]} Qxe3 {[%emt 0:00:47]} 47. Kd7 {[%emt 0:01:22]} Qb3 {[%emt 0:00:34]} 48. Qf4 {[%emt 0:01:32]} Qb5+ {[%emt 0:00:22]} 49. Ke6 {[%emt 0:00:44]} Rg6+ {[%emt 0:00:28]} 50. Ke7 {[%emt 0:00:18]} Qb7+ {[%emt 0:00:26]} 51. Bc7 {[%emt 0:00:01]} Qc6 {[%emt 0:00:47]} 52. Bd6 {[%emt 0:00:01]} Rf6 {[%emt 0:00:45]} 53. Qe5 {[%emt 0:00:29]} Kg8 {[%emt 0:00:11]} 54. Qg3 {[%emt 0:01:10]} Rf7+ {[%emt 0:00:35]} 55. Ke6 {[%emt 0:00:01]} Rf6+ {[%emt 0:00:40]} 56. Ke7 {[%emt 0:00:00]} Qb7+ {[%emt 0:00:27]} 57. Bc7 {[%emt 0:00:42]} Rf7+ {[%emt 0:00:10]} 58. Kd8 {[%emt 0:00:01]} Qc6 {[%emt 0:00:21]} 59. Qd6 {[%emt 0:00:40]} Rf8+ {[%emt 0:00:14]} 0-1

[Event "EYCC O18-ch 2024"]
[Site "Prague"]
[Date "2024.08.23"]
[Round "2.14"]
[White "Serrano Almendros, Angel"]
[Black "Sheahan, Ben"]
[Result "1-0"]
[ECO "C06"]
[WhiteElo "2310"]
[BlackElo "2043"]
[Annotator "ChessBase"]
[PlyCount "123"]
[EventDate "2024.08.19"]
[EventType "swiss"]
[EventCountry "CZE"]
[SourceTitle "playchess.com"]
[Source "ChessBase"]
[SourceQuality "1"]
[TimeControl "5400+30"]

1. e4 {[%emt 0:00:01]} e6 {[%emt 0:00:05]} 2. d4 {[%emt 0:00:04]} d5 {[%emt 0:00:05]} 3. Nd2 {[%emt 0:00:04]} Nf6 {[%emt 0:00:04]} 4. e5 {[%emt 0:00:06]} Nfd7 {[%emt 0:00:02]} 5. Bd3 {[%emt 0:00:09]} c5 {[%emt 0:00:05]} 6. c3 {[%emt 0:00:04]} Nc6 {[%emt 0:00:03]} 7. Ne2 {[%emt 0:00:05]} cxd4 {[%emt 0:00:09]} 8. cxd4 {[%emt 0:00:07]} f6 {[%emt 0:00:43]} 9. exf6 {[%emt 0:00:03]} Nxf6 {[%emt 0:00:04]} 10. Nf3 {[%emt 0:00:13]} Bd6 {[%emt 0:00:05]} 11. O-O {[%emt 0:00:05]} O-O {[%emt 0:00:33]} 12. Bf4 {[%emt 0:00:02]} Nh5 {[%emt 0:01:01]} 13. Bxd6 {[%emt 0:14:43]} Qxd6 {[%emt 0:00:06]} 14. Bb5 {[%emt 0:00:17]} Bd7 {[%emt 0:41:13]} 15. Ne5 {[%emt 0:01:38]} Nxe5 {[%emt 0:03:12]} 16. dxe5 {[%emt 0:00:05]} Qe7 {[%emt 0:00:32]} 17. Bxd7 {[%emt 0:28:20]} Qxd7 {[%emt 0:00:09]} 18. Qd4 {[%emt 0:00:29]} g6 {[%emt 0:20:12]} 19. Rac1 {[%emt 0:01:22]} b6 {[%emt 0:01:58]} 20. Qe3 {[%emt 0:03:31]} Ng7 {[%emt 0:03:04]} 21. g4 {[%emt 0:00:48]} Rac8 {[%emt 0:03:11]} 22. Nd4 {[%emt 0:00:50]} Rc5 {[%emt 0:04:51]} 23. h3 {[%emt 0:07:21]} Rfc8 {[%emt 0:00:48]} 24. a3 {[%emt 0:00:35]} R8c7 {[%emt 0:04:41]} 25. f4 {[%emt 0:01:05]} Rxc1 {[%emt 0:03:38]} 26. Rxc1 {[%emt 0:00:05]} Qc8 {[%emt 0:00:45]} 27. Rxc7 {[%emt 0:08:44]} Qxc7 {[%emt 0:00:02]} 28. Qc3 {[%emt 0:01:06]} Qxc3 {[%emt 0:01:47]} 29. bxc3 {[%emt 0:00:03]} a6 {[%emt 0:00:49]} 30. Nc6 {[%emt 0:05:20]} Ne8 {[%emt 0:01:11]} 31. Ne7+ {[%emt 0:04:46]} Kf7 {[%emt 0:00:21]} 32. Nc8 {[%emt 0:00:04]} b5 {[%emt 0:03:18]} 33. Kf2 {[%emt 0:00:40]} Nc7 {[%emt 0:04:28]} 34. Ke3 {[%emt 0:00:25]} Ke8 {[%emt 0:00:47]} 35. Kd4 {[%emt 0:03:07]} Kd7 {[%emt 0:00:04]} 36. Nd6 {[%emt 0:00:08]} Kc6 {[%emt 0:00:46]} 37. Nf7 {[%emt 0:00:39]} a5 {[%emt 0:01:14]} 38. Ng5 {[%emt 0:01:45]} h5 {[%emt 0:00:04]} 39. Nh7 {[%emt 0:00:44]} hxg4 {[%emt 0:00:10]} 40. hxg4 {[%emt 0:00:02]} b4 {[%emt 0:00:26]} 41. cxb4 {[%emt 0:08:52]} Nb5+ {[%emt 0:00:16]} 42. Kd3 {[%emt 0:00:03]} a4 {[%emt 0:00:07]} 43. Nf8 {[%emt 0:02:19]} Nxa3 {[%emt 0:00:12]} 44. Nxe6 {[%emt 0:01:06]} Nc4 {[%emt 0:00:48]} 45. Nd4+ {[%emt 0:01:55]} Kd7 {[%emt 0:00:43]} 46. Nc2 {[%emt 0:00:33]} g5 {[%emt 0:00:45]} 47. fxg5 {[%emt 0:00:14]} Nxe5+ {[%emt 0:00:06]} 48. Kd4 {[%emt 0:00:04]} Nxg4 {[%emt 0:02:03]} 49. Kxd5 {[%emt 0:00:01]} Nf2 {[%emt 0:01:11]} 50. g6 {[%emt 0:03:24]} Ng4 {[%emt 0:01:17]} 51. g7 {[%emt 0:01:13]} Kc7 {[%emt 0:00:08]} 52. Ke6 {[%emt 0:02:21]} Nh6 {[%emt 0:00:07]} 53. Ke7 {[%emt 0:00:59]} Kc6 {[%emt 0:00:39]} 54. Na3 {[%emt 0:00:20]} Kd5 {[%emt 0:00:27]} 55. Kf8 {[%emt 0:00:30]} Kd4 {[%emt 0:00:09]} 56. b5 {[%emt 0:00:21]} Kc5 {[%emt 0:00:05]} 57. g8=Q {[%emt 0:00:13]} Nxg8 {[%emt 0:00:07]} 58. Kxg8 {[%emt 0:00:05]} Kb4 {[%emt 0:00:16]} 59. b6 {[%emt 0:00:04]} Kxa3 {[%emt 0:00:02]} 60. b7 {[%emt 0:00:11]} Ka2 {[%emt 0:00:09]} 61. b8=Q {[%emt 0:00:07]} a3 {[%emt 0:00:06]} 62. Qb4 {[%emt 0:00:10]} 1-0

[Event "EYCC O18-ch 2024"]
[Site "Prague"]
[Date "2024.08.23"]
[Round "2.15"]
[White "Smolik, Jachym"]
[Black "Svejda, Karel"]
[Result "1-0"]
[ECO "A16"]
[WhiteElo "2290"]
[BlackElo "1927"]
[Annotator "RC"]
[PlyCount "79"]
[EventDate "2024.08.19"]
[EventType "swiss"]
[EventCountry "CZE"]
[SourceTitle "playchess.com"]
[Source "ChessBase"]
[SourceQuality "1"]
[TimeControl "5400+30"]

1. c4 {[%emt 0:00:03]} Nf6 {[%emt 0:00:05]} 2. Nc3 {[%emt 0:00:04]} g6 {[%emt 0:00:06]} 3. e4 {[%emt 0:00:04]} Bg7 {[%emt 0:00:26]} 4. d4 {[%emt 0:00:43]} c5 {[%emt 0:01:07]} 5. Nf3 {[%emt 0:01:06]} cxd4 {[%emt 0:01:04]} 6. Nxd4 {[%emt 0:00:10]} d6 {[%emt 0:00:12]} 7. Be2 {[%emt 0:00:13]} Nc6 {[%emt 0:00:11]} 8. Be3 {[%emt 0:03:03]} O-O {[%emt 0:00:16]} 9. O-O {[%emt 0:00:47]} Bd7 {[%emt 0:00:31]} 10. h3 {[%emt 0:00:21]} Nxd4 {[%emt 0:01:53]} 11. Bxd4 {[%emt 0:00:03]} Bc6 {[%emt 0:01:01]} 12. Qc2 {[%emt 0:01:21]} Nd7 {[%emt 0:02:21]} 13. Bxg7 {[%emt 0:00:34]} Kxg7 {[%emt 0:00:08]} 14. Rad1 {[%emt 0:00:31]} a5 {[%emt 0:02:42]} 15. Bg4 {[%emt 0:01:07]} Nc5 {[%emt 0:07:39]} 16. e5 {[%emt 0:00:53]} h5 {[%emt 0:03:34]} 17. Be2 {[%emt 0:01:09]} Re8 {[%emt 0:07:20]} 18. Rd2 {[%emt 0:06:55]} Qc7 {[%emt 0:02:46]} 19. exd6 {[%emt 0:00:16]} exd6 {[%emt 0:00:06]} 20. Rfd1 {[%emt 0:12:12]} Re6 {[%emt 0:06:05]} 21. Nd5 {[%emt 0:02:55]} Bxd5 {[%emt 0:00:07]} 22. Rxd5 {[%emt 0:00:07]} Rae8 {[%emt 0:01:25]} 23. Qc3+ {[%emt 0:01:15]} Kg8 {[%emt 0:01:55]} 24. Bf3 {[%emt 0:01:41]} Ne4 {[%emt 0:13:55]} 25. Bxe4 {[%emt 0:06:19]} Rxe4 {[%emt 0:00:14]} 26. b3 {[%emt 0:01:00]} b6 {[%emt 0:01:23]} 27. Qg3 {[%emt 0:05:15]} Re1+ {[%emt 0:04:45]} 28. Rxe1 {[%emt 0:00:08]} Rxe1+ {[%emt 0:00:07]} 29. Kh2 {[%emt 0:00:02]} Re5 {[%emt 0:02:40]} 30. Rd4 {[%emt 0:04:05]} Qc5 {[%emt 0:03:40]} 31. Rd2 {[%emt 0:05:27]} Qc7 {[%emt 0:08:40]} 32. Qf4 {[%emt 0:09:52]} g5 {[%emt 0:08:58]} 33. Qg3 {[%emt 0:01:02]} h4 {[%emt 0:02:18]} 34. Qg4 {[%emt 0:00:51]} d5 {[%emt 0:01:36]} 35. f4 {[%emt 0:01:57]} Re4 {[%emt 0:08:28]} 36. Qxg5+ {[%emt 0:00:05]} Kf8 {[%emt 0:00:34]} 37. Qh6+ {[%emt 0:01:22]} Ke8 {[%emt 0:00:48]} 38. Qh8+ {[%emt 0:00:46]} Ke7 {[%emt 0:00:43]} 39. Qxh4+ {[%emt 0:00:06]} Ke8 {[%emt 0:00:39]} 40. Rxd5 {[%emt 0:00:51]} 1-0

[Event "EYCC O18-ch 2024"]
[Site "Prague"]
[Date "2024.08.23"]
[Round "2.15"]
[White "Engin, Onur Cinar"]
[Black "Pasztor, Balazs"]
[Result "0-1"]
[ECO "B22"]
[WhiteElo "2215"]
[BlackElo "2402"]
[Annotator "ChessBase"]
[PlyCount "108"]
[EventDate "2024.08.19"]
[EventType "swiss"]
[EventCountry "CZE"]
[SourceTitle "playchess.com"]
[Source "ChessBase"]
[SourceQuality "1"]
[TimeControl "5400+30"]

1. e4 {[%emt 0:00:04]} c5 {[%emt 0:00:07]} 2. c3 {[%emt 0:00:18]} Nf6 {[%emt 0:00:11]} 3. e5 {[%emt 0:00:09]} Nd5 {[%emt 0:00:06]} 4. Nf3 {[%emt 0:00:23]} d6 {[%emt 0:00:21]} 5. d4 {[%emt 0:01:49]} cxd4 {[%emt 0:00:18]} 6. cxd4 {[%emt 0:00:12]} Nc6 {[%emt 0:00:12]} 7. Bc4 {[%emt 0:00:29]} Nb6 {[%emt 0:00:38]} 8. Bb5 {[%emt 0:03:03]} dxe5 {[%emt 0:01:17]} 9. Nxe5 {[%emt 0:00:08]} Bd7 {[%emt 0:00:10]} 10. Nxd7 {[%emt 0:00:15]} Qxd7 {[%emt 0:00:09]} 11. Nc3 {[%emt 0:00:31]} e6 {[%emt 0:00:21]} 12. O-O {[%emt 0:00:40]} Rd8 {[%emt 0:00:16]} 13. Be3 {[%emt 0:01:27]} Be7 {[%emt 0:00:26]} 14. Qf3 {[%emt 0:02:01]} a6 {[%emt 0:13:23]} 15. Bxc6 {[%emt 0:01:36]} Qxc6 {[%emt 0:00:43]} 16. Qxc6+ {[%emt 0:02:21]} bxc6 {[%emt 0:00:06]} 17. Rac1 {[%emt 0:03:42]} Kd7 {[%emt 0:04:21]} 18. Rfd1 {[%emt 0:22:14]} a5 {[%emt 0:06:46]} 19. Ne4 {[%emt 0:04:03]} Ra8 {[%emt 0:02:14]} 20. b3 {[%emt 0:06:45]} Rhb8 {[%emt 0:04:18]} 21. Nc5+ {[%emt 0:02:46]} Bxc5 {[%emt 0:00:56]} 22. dxc5+ {[%emt 0:01:14]} Nd5 {[%emt 0:00:08]} 23. Rc4 {[%emt 0:02:16]} f6 {[%emt 0:14:01]} 24. Rg4 {[%emt 0:07:57]} g6 {[%emt 0:04:11]} 25. Rh4 {[%emt 0:01:56]} h5 {[%emt 0:01:55]} 26. g4 {[%emt 0:04:05]} Rb4 {[%emt 0:08:06]} 27. Rd4 {[%emt 0:07:47]} e5 {[%emt 0:08:07]} 28. Rxb4 {[%emt 0:01:07]} axb4 {[%emt 0:01:27]} 29. gxh5 {[%emt 0:00:29]} gxh5 {[%emt 0:00:38]} 30. Rxh5 {[%emt 0:03:37]} Rxa2 {[%emt 0:01:20]} 31. h4 {[%emt 0:01:12]} Rb2 {[%emt 0:05:45]} 32. Rh7+ {[%emt 0:01:17]} Ke6 {[%emt 0:01:09]} 33. h5 {[%emt 0:00:37]} Nxe3 {[%emt 0:04:14]} 34. fxe3 {[%emt 0:00:09]} Rxb3 {[%emt 0:00:09]} 35. Kf2 {[%emt 0:01:32]} Rb1 {[%emt 0:02:38]} 36. Kg2 {[%emt 0:00:43]} Kd5 {[%emt 0:03:59]} 37. h6 {[%emt 0:03:25]} Ra1 {[%emt 0:00:32]} 38. Rb7 {[%emt 0:00:47]} Kxc5 {[%emt 0:00:42]} 39. h7 {[%emt 0:00:07]} Ra8 {[%emt 0:00:06]} 40. Kf3 {[%emt 0:00:21]} f5 {[%emt 0:03:19]} 41. e4 {[%emt 0:01:51]} f4 {[%emt 0:01:30]} 42. Kg4 {[%emt 0:00:16]} Rh8 {[%emt 0:00:53]} 43. Kf5 {[%emt 0:00:23]} Kc4 {[%emt 0:01:29]} 44. Kxe5 {[%emt 0:01:34]} f3 {[%emt 0:00:06]} 45. Rf7 {[%emt 0:01:07]} b3 {[%emt 0:00:11]} 46. Rxf3 {[%emt 0:00:13]} b2 {[%emt 0:00:05]} 47. Rf1 {[%emt 0:00:08]} Rxh7 {[%emt 0:00:05]} 48. Kd6 {[%emt 0:02:18]} Rh6+ {[%emt 0:00:06]} 49. Kd7 {[%emt 0:00:36]} c5 {[%emt 0:00:11]} 50. e5 {[%emt 0:00:15]} Kb3 {[%emt 0:00:38]} 51. e6 {[%emt 0:00:22]} c4 {[%emt 0:00:26]} 52. e7 {[%emt 0:00:07]} Rh7 {[%emt 0:00:03]} 53. Kd8 {[%emt 0:00:30]} Rxe7 {[%emt 0:00:04]} 54. Kxe7 {[%emt 0:00:13]} c3 {[%emt 0:00:04]} 0-1

[Event "EYCC O18-ch 2024"]
[Site "Prague"]
[Date "2024.08.23"]
[Round "2.16"]
[White "Talibov, Shiroghlan"]
[Black "Fishchuk, Vladyslav"]
[Result "1-0"]
[ECO "B31"]
[WhiteElo "2395"]
[BlackElo "2264"]
[Annotator "RC"]
[PlyCount "87"]
[EventDate "2024.08.19"]
[EventType "swiss"]
[EventCountry "CZE"]
[SourceTitle "playchess.com"]
[Source "ChessBase"]
[SourceQuality "1"]
[TimeControl "5400+30"]

1. e4 {[%emt 0:00:01]} c5 {[%emt 0:00:08]} 2. Nf3 {[%emt 0:00:07]} Nc6 {[%emt 0:00:09]} 3. Bb5 {[%emt 0:00:12]} g6 {[%emt 0:00:07]} 4. Bxc6 {[%emt 0:00:10]} bxc6 {[%emt 0:00:06]} 5. O-O {[%emt 0:00:20]} Bg7 {[%emt 0:00:08]} 6. Re1 {[%emt 0:00:10]} Qc7 {[%emt 0:00:06]} 7. Na3 {[%emt 0:01:14]} Nh6 {[%emt 0:02:03]} 8. d3 {[%emt 0:06:50]} O-O {[%emt 0:07:03]} 9. h3 {[%emt 0:00:13]} f6 {[%emt 0:03:47]} 10. Be3 {[%emt 0:02:37]} d6 {[%emt 0:00:38]} 11. Qd2 {[%emt 0:00:04]} Nf7 {[%emt 0:01:12]} 12. c3 {[%emt 0:00:10]} Rb8 {[%emt 0:06:47]} 13. Rac1 {[%emt 0:06:55]} f5 {[%emt 0:06:01]} 14. exf5 {[%emt 0:01:44]} Bxf5 {[%emt 0:00:14]} 15. d4 {[%emt 0:03:46]} cxd4 {[%emt 0:00:51]} 16. cxd4 {[%emt 0:00:12]} Be4 {[%emt 0:08:04]} 17. Nh2 {[%emt 0:02:28]} Qb7 {[%emt 0:05:47]} 18. b3 {[%emt 0:01:58]} c5 {[%emt 0:12:37]} 19. f3 {[%emt 0:01:39]} cxd4 {[%emt 0:00:25]} 20. Bxd4 {[%emt 0:00:07]} Bxd4+ {[%emt 0:03:07]} 21. Qxd4 {[%emt 0:00:02]} Bf5 {[%emt 0:00:43]} 22. Nc4 {[%emt 0:02:23]} e5 {[%emt 0:00:31]} 23. Qh4 {[%emt 0:04:38]} Rbc8 {[%emt 0:07:48]} 24. Rcd1 {[%emt 0:03:35]} Qa6 {[%emt 0:03:22]} 25. Rd2 {[%emt 0:06:54]} Be6 {[%emt 0:06:44]} 26. Ne3 {[%emt 0:00:11]} Qb6 {[%emt 0:08:49]} 27. Kh1 {[%emt 0:02:13]} Qd8 {[%emt 0:00:04]} 28. Qg3 {[%emt 0:03:50]} Rc3 {[%emt 0:02:09]} 29. Nhg4 {[%emt 0:00:40]} Qe7 {[%emt 0:00:50]} 30. Nf2 {[%emt 0:01:24]} Rfc8 {[%emt 0:01:25]} 31. Ne4 {[%emt 0:00:50]} Rc1 {[%emt 0:00:07]} 32. Rxc1 {[%emt 0:00:03]} Rxc1+ {[%emt 0:00:11]} 33. Kh2 {[%emt 0:00:01]} Kg7 {[%emt 0:01:57]} 34. Qf2 {[%emt 0:02:44]} Ra1 {[%emt 0:02:17]} 35. f4 {[%emt 0:12:17]} d5 {[%emt 0:02:44]} 36. Nxd5 {[%emt 0:00:42]} Bxd5 {[%emt 0:00:05]} 37. Rxd5 {[%emt 0:00:03]} exf4 {[%emt 0:00:14]} 38. Qd4+ {[%emt 0:00:36]} Kf8 {[%emt 0:03:37]} 39. Rd7 {[%emt 0:02:39]} Rd1 {[%emt 0:00:43]} 40. Qxd1 {[%emt 0:00:10]} Qxe4 {[%emt 0:00:09]} 41. Qd5 {[%emt 0:00:19]} Qe8 {[%emt 0:00:50]} 42. Rxa7 {[%emt 0:00:08]} Kg7 {[%emt 0:00:07]} 43. a4 {[%emt 0:00:08]} f3 {[%emt 0:00:12]} 44. Qxf7+ {[%emt 0:00:04]} 1-0